Cogmind - Beta 14 @@@ ROGUE MODE // 2024.09.27 @ 23:14:38 Player: star Result: Escaped! Performance ------------- Evolutions (9) 4500 Regions Visited (15) 3000 Robots Destroyed (153) 765 Value Destroyed (5668) 5668 Prototype IDs (14) 280 Alien Tech Used (0) 0 Bonus (3805) 3805 TOTAL SCORE: 18018 Bonus ------- High Alert Combat Kills 421 Entered DSFs 500 Win 3000 Friendly Fire -116 Cogmind --------- Core Integrity 1558/1600 Matter 192/300 Energy 587/590 System Corruption 0% Temperature Cool (2) Movement Walking (190) Ox1 Location To Epsilon Eridani Parts ------- > --- POWER (2) -------- Particle Reactor Quantum Reactor > --- PROPULSION (12) -- Centrium Leg Impulse Thruster Array > --- UTILITY (9) ------ Advanced Melee Analysis Suite Advanced Thermal Shield > --- WEAPON (2) ------- Enhanced Quantum Rifle Railgun > --- INVENTORY (5) ---- Large Storage Unit Advanced KE Penetrator Peak State ------------ > --- POWER ------------ Improved Fusion Compressor Light Quantum Reactor > --- PROPULSION ------- Linear Gravjet Linear Gravjet Linear Gravjet Linear Gravjet Linear Gravjet Linear Gravjet Impulse Thruster Array Impulse Thruster Array > --- UTILITY ---------- Large Storage Unit Advanced Melee Analysis Suite Advanced Melee Analysis Suite Advanced Melee Analysis Suite Advanced Target Analyzer Advanced Transmission Jammer Improved Remote Shield > --- WEAPON ----------- Advanced KE Penetrator Advanced KE Penetrator > --- INVENTORY -------- Biometal Medium Treads Advanced KE Penetrator Advanced KE Penetrator Advanced KE Penetrator Advanced KE Penetrator [Rating: 141] Favorites ----------- Power Improved Deuterium Engine Engine Improved Deuterium Engine Power Core Micro Fission Core Reactor Light Quantum Reactor Propulsion Improved Treads Treads Improved Treads Leg Carbon-fiber Leg Wheel Wheel Hover Unit Linear Gravjet Flight Unit Xenon Bombardment Thruster Utility Small Storage Unit Device Reaction Control System Storage Small Storage Unit Processor Advanced Melee Analysis Suite Protection Makeshift Light Armor Plating Weapon Chainsword Energy Gun Medium Laser Energy Cannon Heavy Plasma Cannon Ballistic Gun Gauss Rifle Ballistic Cannon Light Cannon Launcher Grenade Launcher Special Weapon Enhanced Flamer Impact Weapon Heavy Mace Slashing Weapon Chainsword Build | -11 -10 -10 -8 -7 -7 -7 -6 -5 -5 -4 -4 -3 -2 -2 -1 ------- Run | Yrd Mat Sub Mat Fac Low Low Fac Fac Ext Fac DSF Res Res Qua Acc Slots Evolved 18 | . . . 4 2 . . 2 2 . 2 . 2 2 . 2 Power 1 | . . . . 1 . . . . . . . . . . . Propulsion 10 | . . . 3 1 . . 2 . . 2 . . 2 . . Utility 7 | . . . 1 . . . . 2 . . . 2 . . 2 Weapon . | . . . . . . . . . . . . . . . . Parts Attached 242 | 6 6 18 25 10 6 . 16 4 61 4 11 40 25 4 6 Power 37 | 1 1 1 4 3 1 . 7 1 2 1 2 6 3 1 3 Engine 13 | 1 . 1 2 2 1 . 5 . 1 . . . . . . Core 10 | . 1 . 2 1 . . 2 1 1 1 . . 1 . . Reactor 14 | . . . . . . . . . . . 2 6 2 1 3 Propulsion 86 | 2 . 3 3 2 2 . 4 . 31 3 4 16 13 2 1 Treads 27 | . . . 1 . . . . . 17 2 . 6 1 . . Leg 21 | . . . . . . . . . 14 1 4 . 1 . 1 Wheel 5 | 2 . 3 . . . . . . . . . . . . . Hover 7 | . . . . . . . . . . . . . 7 . . Flight 26 | . . . 2 2 2 . 4 . . . . 10 4 2 . Utility 44 | 1 1 1 7 1 1 . 2 3 5 . 4 13 4 . 1 Device 23 | . 1 . 2 . 1 . 2 1 3 . 4 5 3 . 1 Storage 3 | 1 . . . . . . . 1 . . . . 1 . . Processor 12 | . . . 3 1 . . . 1 . . . 7 . . . Hackware . | . . . . . . . . . . . . . . . . Protection 6 | . . 1 2 . . . . . 2 . . 1 . . . Artifact . | . . . . . . . . . . . . . . . . Weapon 75 | 2 4 13 11 4 2 . 3 . 23 . 1 5 5 1 1 Energy Gun 9 | 2 1 4 . . . . . . 1 . . . . 1 . Energy Cannon 1 | . . . . . . . . . 1 . . . . . . Ballistic Gun 29 | . . 3 5 . . . . . 14 . 1 . 5 . 1 Ballistic Cannon 5 | . 2 2 . . . . . . 1 . . . . . . Launcher 15 | . 1 3 2 1 1 . 1 . 5 . . 1 . . . Special Weapon 1 | . . 1 . . . . . . . . . . . . . Impact Weapon 6 | . . . 2 . . . . . . . . 4 . . . Slashing Weapon 9 | . . . 2 3 1 . 2 . 1 . . . . . . Piercing Weapon . | . . . . . . . . . . . . . . . . Special Melee Weapon . | . . . . . . . . . . . . . . . . Unidentified Prototypes 3 | . . . 1 . . . . . . . . 1 1 . . Corrupted Parts 3 | . . . . . . . 1 . . . . 1 1 . . System Corruption 21 | . . . . . . . 2 . . . . 8 11 . . Parts Lost 116 | . . 8 3 2 4 . 3 1 24 . 23 22 21 2 3 Power 15 | . . 1 1 1 1 . . . 3 . 1 3 3 . 1 Propulsion 55 | . . 2 . 1 1 . 2 . 15 . 12 8 10 2 2 Utility 30 | . . 1 1 . 2 . 1 1 2 . 7 9 6 . . Weapon 16 | . . 4 1 . . . . . 4 . 3 2 2 . . Highest Loss Streak 12 | . . 3 1 2 1 . 2 1 6 . 12 10 8 2 3 To Critical Strikes 1 | . . . . . . . 1 . . . . . . . . Average Slot Usage (%) 71 | . 92 96 59 65 64 60 59 79 88 77 29 43 55 29 31 Engine 4 | . 6 7 4 9 10 6 6 5 3 . . . . . . Core 2 | . 7 3 1 . 1 . 3 5 4 2 1 . 2 . . Treads 4 | . . . 1 . . . . . 19 28 8 4 . . . Leg 3 | . . . . . . . . . 15 15 4 . . 3 3 Wheel 7 | . 28 27 . . . . . . . . . . . . . Hover 1 | . . . . . . . . . . . . . 14 . . Flight 8 | . . . 12 17 19 20 17 29 2 . . 10 11 18 9 Device 7 | . 6 3 8 12 10 13 12 14 11 15 6 2 3 . 3 Storage 5 | . 14 14 7 6 2 . . 3 2 . . . . . . Processor 5 | . . . 6 6 6 6 5 6 7 5 3 13 13 4 4 Protection 2 | . . 10 3 . . . . . 4 . . . . . . Energy Gun 1 | . 6 5 . . . . . . . . . . . 1 4 Ballistic Gun 3 | . . 7 7 . . . . . 7 10 2 . 3 . . Ballistic Cannon 4 | . 21 8 1 . . . . . . . . . . . . Slashing Weapon 3 | . . . 3 8 12 13 10 11 . . . . . . . Peak Build Rating 141 | 6 9 21 65 76 77 67 78 60 67 66 66 132 141 104 80 Average Rating 51 | 4 7 13 60 70 70 67 46 56 55 59 28 69 107 82 75 On Entrance 44 | . 6 9 21 65 76 67 67 52 60 44 66 2 57 62 64 Naked Turns 24 | . . . . . . . . . . . 24 . . . . Heaviest Build 63 | 12 17 21 31 34 33 18 29 32 45 20 25 40 63 26 53 Greatest Support 159 | 26 26 40 30 36 36 36 42 30 138 159 159 135 80 72 40 Greatest Overweight (x) 7 | . . 6 1 1 . . 2 1 2 . . 7 2 . 1 Average Overweight (x) . | . . . . . . . . . . . . . . . . Largest Inventory Capacity 15 | 8 8 8 8 8 8 5 5 5 5 5 5 5 15 5 5 Average Capacity 6 | 6 8 8 8 8 6 5 5 5 5 5 5 5 6 5 5 Most Carried 8 | . 7 8 8 8 8 5 5 5 5 3 5 5 6 3 3 Average Carried 5 | . 5 6 6 7 5 5 4 4 4 3 2 1 2 2 2 Final Capacity 8 | 8 8 8 8 8 5 5 5 5 5 5 5 5 5 5 5 Final Carried 8 | . 7 8 8 7 5 5 5 5 4 3 5 1 2 3 2 Class Distribution -------------------- 77% | Mutant 12% | Scavenger-Mutant 5% | Sprinter Dominant Class ---------------- Mutant | -10/Materials Mutant | -10/Subcaves Mutant | -8/Materials Mutant | -7/Factory Mutant | -7/Lower Caves Mutant | -7/Lower Caves Mutant | -6/Factory Gladiator | -5/Factory Scavenger-Mutant | -5/Extension Scavenger-Mutant | -4/Factory Mutant | -4/DSF Gladiator | -3/Research Mutant | -2/Research Mutant | -2/Quarantine Mutant | -1/Access Resources | -11 -10 -10 -8 -7 -7 -7 -6 -5 -5 -4 -4 -3 -2 -2 -1 ----------- Run | Yrd Mat Sub Mat Fac Low Low Fac Fac Ext Fac DSF Res Res Qua Acc Matter Collected 4255 | 241 141 688 642 105 90 . 165 55 1196 . 59 385 300 . 188 Remotely . | . . . . . . . . . . . . . . . . Salvage Created 7043 | . 285 332 1041 390 490 315 743 88 2046 . 59 664 402 . 188 Parts 308 | . 21 13 55 26 31 1 37 1 96 . . 19 5 . 3 Haulers Intercepted 8 | . . . 3 . . . 3 1 . . . . 1 . . Recyclers Shooed 1 | . . . 1 . . . . . . . . . . . . Parts Field Recycled . | . . . . . . . . . . . . . . . . Retrieved Matter . | . . . . . . . . . . . . . . . . Parts Self-Destructed 32 | . . 3 . . 28 1 . . . . . . . . . Prevented 5 | . . . . . 5 . . . . . . . . . . Kills | -11 -10 -10 -8 -7 -7 -7 -6 -5 -5 -4 -4 -3 -2 -2 -1 ------- Run | Yrd Mat Sub Mat Fac Low Low Fac Fac Ext Fac DSF Res Res Qua Acc Combat Hostiles Destroyed 121 | . 10 10 25 8 10 1 7 . 33 . 1 12 2 . 2 Melee 29 | . . . 5 4 7 1 4 . 3 . 1 4 . . . Guns 44 | . 3 7 14 . . . . . 17 . . . 1 . 2 Cannons 5 | . 2 1 2 . . . . . . . . . . . . AOE 34 | . 5 2 4 4 3 . 3 . 12 . . 1 . . . Classes Destroyed 19 | . 5 2 3 2 2 . 1 . 2 . . 1 1 . . Worker 6 | . 2 . . . . . 1 . 2 . . . 1 . . Builder 7 | . 1 . . 1 . . 1 . 4 . . . . . . Tunneler 1 | . . . . . . . . . . . . . 1 . . Hauler 8 | . . . 3 . . . 3 1 . . . . 1 . . Recycler 4 | . 1 . . . . . . . 2 . . . 1 . . Minesweeper 1 | . . . . . 1 . . . . . . . . . . Mechanic 3 | . . . . 2 . . 1 . . . . . . . . Operator 1 | . . . . 1 . . . . . . . . . . . Watcher 1 | . . . . . . . . . 1 . . . . . . Swarmer 45 | . 6 . 8 4 8 . 3 . 12 . . 4 . . . Grunt 35 | . 4 . 10 . 2 . 2 . 14 . . 1 1 . 1 Duelist 1 | . . . 1 . . . . . . . . . . . . Sentry 14 | . . 1 5 3 . . . . 3 . . 1 . . 1 Specialist 3 | . . . . . . . 2 . . . 1 . . . . Hunter 7 | . . . 1 1 . 1 . . 2 . . 2 . . . Programmer 5 | . . . . . . . . . . . . 4 1 . . Behemoth 2 | . . . . . . . . . 2 . . . . . . Subdweller 9 | . . 9 . . . . . . . . . . . . . Packrat 2 | . . . . . . 2 . . . . . . . . . Samaritan 1 | . . . . . 1 . . . . . . . . . . Best Kill Streak 11 | . 11 2 5 4 4 1 5 1 10 . 1 7 2 . 1 Combat Bots Only 8 | . 8 2 5 4 4 1 5 . 8 . 1 7 1 . 1 Max Kills in Single Turn 5 | . 3 1 3 2 2 1 1 1 5 . 1 1 1 . 1 Gunslinging 1 | . . . 1 . . . . . . . . . . . . Exploded 2 | . 2 1 2 2 2 . 1 . 2 . . 1 . . . Melee 1 | . . . 1 1 1 1 1 . 1 . 1 1 . . . Uniques/NPCs Destroyed . | . . . . . . . . . . . . . . . . Combat | -11 -10 -10 -8 -7 -7 -7 -6 -5 -5 -4 -4 -3 -2 -2 -1 -------- Run | Yrd Mat Sub Mat Fac Low Low Fac Fac Ext Fac DSF Res Res Qua Acc Hostile Shots Fired 1604 | . 16 60 99 127 76 6 37 3 300 . 262 339 222 33 24 Missed 607 | . 4 17 31 71 45 3 12 1 90 . 84 136 92 18 3 Damage Taken 19047 | . 199 983 951 768 526 50 466 31 3740 . 2796 4457 3318 362 400 Core 3783 | . 35 139 143 68 46 . 109 14 404 . 783 996 926 78 42 Absorbed by Shields 336 | . . . . . . . . 8 273 . . . 55 . . Redirected to Shielding 107 | . . . . . . . . . . . . 107 . . . Ignored by Resistances 127 | . . . . . . . . . . . . . . . 127 Core Remaining (%) 61 | 100 . 30 74 . . 83 87 . 58 . 31 23 . 30 97 Volleys Fired 287 | . 35 52 51 3 3 . 6 . 93 . 15 2 13 . 14 Largest 2 | . 2 2 2 1 1 . 1 . 2 . 2 1 2 . 1 Hottest 143 | . 80 130 69 36 36 . 36 . 143 . 61 36 70 . 65 Shots Fired 504 | . 63 94 89 3 3 . 6 . 176 . 29 2 25 . 14 Gun 329 | . 6 50 64 . . . . . 141 . 29 . 25 . 14 Cannon 125 | . 51 28 21 . . . . . 25 . . . . . . Launcher 44 | . 6 10 4 3 3 . 6 . 10 . . 2 . . . Special 6 | . . 6 . . . . . . . . . . . . . Kinetic 394 | . 51 54 85 . . . . . 150 . 29 . 25 . . Thermal 66 | . 6 30 . . . . . . 16 . . . . . 14 Explosive 16 | . 6 10 . . . . . . . . . . . . . Electromagnetic 28 | . . . 4 3 3 . 6 . 10 . . 2 . . . Robot Hit Streak 22 | . 4 22 15 . 1 . . . 14 . 6 . 4 . 4 Robot Miss Streak 6 | . 2 2 4 . 2 . 6 . 3 . 2 3 3 . 2 Penetration Max 1 | . . . . . . . . . 1 . . . 1 . . Secondary Targets 4 | . . . 2 . . . . . 2 . . . . . . Max Gunslinging Chain 1 | . . . 1 . . . . . 1 . . . . . . Shots Hit Robots 444 | . 12 53 69 20 23 6 20 2 141 . 19 48 22 . 9 Core Hits 244 | . 19 21 46 14 17 2 15 1 82 . 2 10 9 . 6 Critical Kills 5 | . . . 1 . . . . . 2 . . 1 1 . . Critical Parts Destroyed 16 | . . . . . . . . . 3 . . 10 3 . . Critical Strikes 42 | . . 3 5 2 2 . 5 . 10 . . 11 4 . . Burn 2 | . . 2 . . . . . . . . . . . . . Destroy 11 | . . 1 2 . . . . . 5 . . . 3 . . Blast 3 | . . . 2 . . . . . 1 . . . . . . Smash 12 | . . . . . . . . . . . . 11 1 . . Sever 14 | . . . 1 2 2 . 5 . 4 . . . . . . Melee Attacks 256 | . . . 19 55 38 9 31 5 21 . . 68 10 . . Impact 83 | . . . 1 4 . . . . . . . 68 10 . . Slashing 173 | . . . 18 51 38 9 31 5 21 . . . . . . Piercing . | . . . . . . . . . . . . . . . . Sneak Attacks 28 | . . . 2 4 6 2 8 1 3 . . . 2 . . Combat Hostiles 4 | . . . 1 . 2 . 1 . . . . . . . . Follow-up Attacks 21 | . . . . 2 5 2 3 . . . . 9 . . . Damage Inflicted 17099 | . 617 958 1906 1111 1270 327 1241 138 5183 . 330 2454 1260 . 304 Guns 5170 | . 50 511 825 . . . . . 2481 . 326 . 673 . 304 Cannons 1135 | . 122 221 178 . . . . . 614 . . . . . . Explosions 3150 | . 422 181 451 194 127 . 144 . 1472 . . 159 . . . Melee 7423 | . . . 452 917 1143 327 1097 138 569 . . 2295 485 . . Ramming 176 | . 23 . . . . . . . 47 . 4 . 102 . . Kinetic 5372 | . 122 494 1003 . . . . . 2754 . 326 . 673 . . Thermal 1489 | . 50 283 38 . . . . . 814 . . . . . 304 Explosive 603 | . 422 181 . . . . . . . . . . . . . Electromagnetic 2036 | . . . 413 194 127 . 144 . 999 . . 159 . . . Impact 2780 | . . . . . . . . . . . . 2295 485 . . Slashing 4643 | . . . 452 917 1143 327 1097 138 569 . . . . . . Piercing . | . . . . . . . . . . . . . . . . Highest Corruption 30 | . 2 2 . . . . 2 . . . . 30 24 25 . Average Corruption 6 | . 2 2 . . . . 2 . . . . 22 17 24 . Corruption Purged . | . . . . . . . . . . . . . . . . Corruption Blocked . | . . . . . . . . . . . . . . . . Effects 78 | . 13 9 . . . . 3 . . . . 20 28 5 . Message Errors 14 | . 4 2 . . . . . . . . . 3 3 2 . Matter Fused 18 | . 3 1 . . . . 1 . . . . 3 9 1 . Heat Flow Errors 11 | . 3 2 . . . . 2 . . . . 1 3 . . Energy Discharges 6 | . 2 . . . . . . . . . . 3 1 . . Parts Rejected 3 | . . . . . . . . . . . . 2 1 . . Parts Fused 2 | . . 1 . . . . . . . . . . 1 . . Data Loss (minor) 6 | . 1 1 . . . . . . . . . 3 . 1 . Data Loss (major) 6 | . . 1 . . . . . . . . . 2 3 . . Misfires 2 | . . 1 . . . . . . . . . . 1 . . Alerts 1 | . . . . . . . . . . . . . 1 . . Misdirections 8 | . . . . . . . . . . . . 3 4 1 . Weapon Failures 1 | . . . . . . . . . . . . . 1 . . Overload Shots . | . . . . . . . . . . . . . . . . Overflow Damage 1387 | . 45 . . 109 68 104 45 . 4 . . 848 164 . . Projectiles . | . . . . . . . . . . . . . . . . Explosions 58 | . 45 . . . 9 . . . 4 . . . . . . Melee 1329 | . . . . 109 59 104 45 . . . . 848 164 . . Knockbacks 20 | . 2 1 1 . . . . . 1 . . 14 1 . . Impact 16 | . . . . . . . . . 1 . . 14 1 . . Kinetic 4 | . 2 1 1 . . . . . . . . . . . . Secondary . | . . . . . . . . . . . . . . . . Self-Inflicted Damage 265 | . 68 . . . 34 . . . 49 . . 65 49 . . Shots 8 | . 2 . . . 2 . . . 3 . . 1 . . . Rammed 13 | . 2 . . . . . . . 3 . 2 . 6 . . Targets Rammed 17 | . 2 . . . . . . . 6 . 3 . 6 . . Kicked 3 | . . . . . . . . . 3 . . . . . . Crushed 1 | . . . . . . . . . . . 1 . . . . Highest Temperature 408 | . 290 243 52 36 217 . 156 25 401 . 18 154 408 . . Average Temperature 76 | . 109 51 17 10 79 . 62 11 108 . 10 30 151 . . Received Heat Transfer 3477 | . 54 183 468 123 126 . 130 17 716 . 948 168 400 72 72 Effects 9 | . 3 . . . . . . . 3 . . . 3 . . Shutdowns 3 | . . . . . . . . . 1 . . . 2 . . Energy Bleed 2 | . . . . . . . . . 1 . . . 1 . . Interference 3 | . 3 . . . . . . . . . . . . . . Matter Decay 1 | . . . . . . . . . 1 . . . . . . Siege Activations . | . . . . . . . . . . . . . . . . Robots Corrupted 12 | . . . . . . . . . 1 . . 7 4 . . Combat Hostiles 9 | . . . . . . . . . 1 . . 7 1 . . Parts Fried 22 | . . . 1 1 . . 1 . 4 . . 10 5 . . Impact Corruptions 37 | . . . . . . . . . . . . 30 7 . . Robots Melted . | . . . . . . . . . . . . . . . . Combat Hostiles . | . . . . . . . . . . . . . . . . Parts Melted 1 | . . . . . . . . . . . . . . . 1 Heat Transferred 2503 | . 148 1000 50 . . . . . 935 . . . . . 370 Parts Sabotaged . | . . . . . . . . . . . . . . . . Parts Stolen . | . . . . . . . . . . . . . . . . Parts Stripped . | . . . . . . . . . . . . . . . . Power Chain Reactions 12 | . . . 1 2 . . . . 8 . . 1 . . . Alert | -11 -10 -10 -8 -7 -7 -7 -6 -5 -5 -4 -4 -3 -2 -2 -1 ------- Run | Yrd Mat Sub Mat Fac Low Low Fac Fac Ext Fac DSF Res Res Qua Acc Peak Influence 920 | . 383 . 920 791 . . 426 235 509 249 174 609 610 313 273 Initial 418 | . . . . 418 . . 289 170 114 249 174 . 342 258 196 Average 272 | . 220 . 372 673 . . 332 178 147 249 71 231 374 283 223 Maximum Alert Level 3 | . 1 . 3 3 . . 2 1 2 1 . 2 2 1 1 Low Security (%) 35 | 100 40 . 28 . . . . 82 65 . 100 41 . . 11 Level 1 44 | . 59 . 24 . . . 96 17 25 100 . 38 72 100 88 Level 2 15 | . . . 33 48 . . 3 . 9 . . 19 27 . . Level 3 4 | . . . 12 51 . . . . . . . . . . . Level 4 . | . . . . . . . . . . . . . . . . Level 5 . | . . . . . . . . . . . . . . . . High Security . | . . . . . . . . . . . . . . . . Max Security . | . . . . . . . . . . . . . . . . Squads Dispatched 24 | . 1 . 6 2 . . 3 . 1 . 1 5 4 . 1 Investigation 6 | . 1 . 1 2 . . 1 . 1 . . . . . . Extermination 2 | . . . . . . . . . . . . 1 1 . . Reinforcement 11 | . . . 4 . . . 2 . . . 1 1 2 . 1 Assault 2 | . . . 1 . . . . . . . . . 1 . . Garrison 3 | . . . . . . . . . . . . 3 . . . Intercept . | . . . . . . . . . . . . . . . . Searches Triggered 1 | . . . . . . . . . . . . . 1 . . Construction Impeded 1 | . . . 1 . . . . . . . . . . . . Haulers Reinforced 2 | . . . . . . . . . . . . . 1 . 1 Active Scanning Responses . | . . . . . . . . . . . . . . . . Cargo Convoy Interrupts . | . . . . . . . . . . . . . . . . Stealth | -11 -10 -10 -8 -7 -7 -7 -6 -5 -5 -4 -4 -3 -2 -2 -1 --------- Run | Yrd Mat Sub Mat Fac Low Low Fac Fac Ext Fac DSF Res Res Qua Acc Distress Signals 6 | . . . 1 . . . . . 2 . . . 2 1 . Communications Jammed 27 | . . . . . . . 5 . . . . . 22 . . Distress Signals 26 | . . . . . . . 4 . . . . . 22 . . Times Spotted 298 | . 21 10 42 11 21 1 23 3 47 . 10 47 48 11 3 Peak Tracking Total 14 | . 7 2 4 3 7 1 9 4 7 . 8 14 13 10 1 Tactical Retreats 47 | . 2 . 5 1 6 . 2 1 6 . 1 10 11 2 . Traps | -11 -10 -10 -8 -7 -7 -7 -6 -5 -5 -4 -4 -3 -2 -2 -1 ------- Run | Yrd Mat Sub Mat Fac Low Low Fac Fac Ext Fac DSF Res Res Qua Acc Traps Triggered 6 | . 1 1 2 . . . . . 1 . 1 . . . . Indirectly 2 | . . . 2 . . . . . . . . . . . . Trap Hack Attempts . | . . . . . . . . . . . . . . . . Triggered . | . . . . . . . . . . . . . . . . Disarmed . | . . . . . . . . . . . . . . . . Reprogrammed . | . . . . . . . . . . . . . . . . Reused . | . . . . . . . . . . . . . . . . Traps Extracted . | . . . . . . . . . . . . . . . . Installed . | . . . . . . . . . . . . . . . . Triggered 1 | . . . . . . . . . 1 . . . . . . Machines | -11 -10 -10 -8 -7 -7 -7 -6 -5 -5 -4 -4 -3 -2 -2 -1 ---------- Run | Yrd Mat Sub Mat Fac Low Low Fac Fac Ext Fac DSF Res Res Qua Acc Machines Disabled 15 | . 1 1 3 2 1 . . . 3 . . 4 . . . Max in Single Turn 2 | . 1 1 2 1 1 . . . 2 . . 2 . . . Garrison Access 4 | . . . 1 1 . . 1 . . . . . 1 . . Energy Cycler 1 | . . . . . . . . . 1 . . . . . . Machines Repaired . | . . . . . . . . . . . . . . . . Machines Dismantled . | . . . . . . . . . . . . . . . . Machines Sabotaged . | . . . . . . . . . . . . . . . . Overloaded Fab Kills . | . . . . . . . . . . . . . . . . Hacking | -11 -10 -10 -8 -7 -7 -7 -6 -5 -5 -4 -4 -3 -2 -2 -1 --------- Run | Yrd Mat Sub Mat Fac Low Low Fac Fac Ext Fac DSF Res Res Qua Acc Machines Accessed 20 | . 1 1 2 4 2 . 3 1 2 1 . 2 . . 1 Terminals 9 | . 1 . . 1 . . 2 1 2 1 . . . . 1 Fabricators 1 | . . . . 1 . . . . . . . . . . . Repair Stations 1 | . . . . 1 . . . . . . . . . . . Recycling Units 1 | . . . . . . . . . . . . 1 . . . Scanalyzers 2 | . . . 2 . . . . . . . . . . . . Garrison Access 3 | . . . . 1 . . 1 . . . . 1 . . . Total Hacks 39 | . 3 1 4 10 2 . 6 2 5 2 . 2 . . 2 Successful 18 | . 1 1 4 4 2 . 2 1 1 1 . . . . 1 Failed 21 | . 2 . . 6 . . 4 1 4 1 . 2 . . 1 Catastrophic 4 | . . . . . . . 1 . 1 . . 2 . . . Database Lockouts . | . . . . . . . . . . . . . . . . Manual 4 | . 3 . . . . . 1 . . . . . . . . Terminals 20 | . 3 . . 3 . . 3 2 5 2 . . . . 2 Fabricators 3 | . . . . 3 . . . . . . . . . . . Repair Stations 2 | . . . . 2 . . . . . . . . . . . Recycling Units 1 | . . . . . . . . . . . . 1 . . . Scanalyzers 4 | . . . 4 . . . . . . . . . . . . Garrison Access 6 | . . . . 2 . . 3 . . . . 1 . . . Terminal Hacks 7 | . . 1 . . 2 . . 1 1 1 . . . . 1 Record 1 | . . . . . 1 . . . . . . . . . . Open Door 4 | . . . . . 1 . . 1 1 . . . . . 1 Open DSF 1 | . . . . . . . . . . 1 . . . . . Derelict Proto ID Bank 1 | . . 1 . . . . . . . . . . . . . Fabricator Hacks 3 | . . . . 3 . . . . . . . . . . . Network Status 1 | . . . . 1 . . . . . . . . . . . Load Schematic 1 | . . . . 1 . . . . . . . . . . . Build 1 | . . . . 1 . . . . . . . . . . . Repair Station Hacks . | . . . . . . . . . . . . . . . . Recycling Unit Hacks . | . . . . . . . . . . . . . . . . Scanalyzer 4 | . . . 4 . . . . . . . . . . . . Insert Component 2 | . . . 2 . . . . . . . . . . . . Analyze 2 | . . . 2 . . . . . . . . . . . . Garrison Access Hacks 2 | . . . . 1 . . 1 . . . . . . . . Seal Access 2 | . . . . 1 . . 1 . . . . . . . . Unauthorized Hacks 2 | . 1 . . . . . 1 . . . . . . . . Terminals 2 | . 1 . . . . . 1 . . . . . . . . Assimilate 2 | . 1 . . . . . 1 . . . . . . . . Fabricators . | . . . . . . . . . . . . . . . . Repair Stations . | . . . . . . . . . . . . . . . . Recycling Units . | . . . . . . . . . . . . . . . . Scanalyzers . | . . . . . . . . . . . . . . . . Garrison Access . | . . . . . . . . . . . . . . . . Data Cores Recovered 1 | . . . . 1 . . . . . . . . . . . Used . | . . . . . . . . . . . . . . . . Hacking Detections 15 | . 1 . 1 4 . . 3 1 2 . . 2 . . 1 Full Trace Events 5 | . 1 . . 2 . . 1 . 1 . . . . . . Feedback Events . | . . . . . . . . . . . . . . . . Feedback Blocked . | . . . . . . . . . . . . . . . . Robot Schematics Acquired . | . . . . . . . . . . . . . . . . Robots Built . | . . . . . . . . . . . . . . . . Authchips . | . . . . . . . . . . . . . . . . Time . | . . . . . . . . . . . . . . . . Total Robot Build Rating . | . . . . . . . . . . . . . . . . Part Schematics Acquired 2 | . . . 2 . . . . . . . . . . . . Parts Built 2 | . . . . 2 . . . . . . . . . . . Authchips . | . . . . . . . . . . . . . . . . Time 84 | . . . . 84 . . . . . . . . . . . Total Part Build Rating 8 | . . . . 8 . . . . . . . . . . . Parts Repaired . | . . . . . . . . . . . . . . . . Time . | . . . . . . . . . . . . . . . . Parts Recycled . | . . . . . . . . . . . . . . . . Recycled Matter . | . . . . . . . . . . . . . . . . Retrieved Matter . | . . . . . . . . . . . . . . . . Retrieved Components . | . . . . . . . . . . . . . . . . Parts Scanalyzed 2 | . . . 2 . . . . . . . . . . . . Part Schematics Acquired 2 | . . . 2 . . . . . . . . . . . . Parts Damaged . | . . . . . . . . . . . . . . . . Bothacking | -11 -10 -10 -8 -7 -7 -7 -6 -5 -5 -4 -4 -3 -2 -2 -1 ------------ Run | Yrd Mat Sub Mat Fac Low Low Fac Fac Ext Fac DSF Res Res Qua Acc Used RIF Installer . | . . . . . . . . . . . . . . . . Robots Hacked . | . . . . . . . . . . . . . . . . Non-combat . | . . . . . . . . . . . . . . . . Combat . | . . . . . . . . . . . . . . . . Robot Hacks Applied . | . . . . . . . . . . . . . . . . Relay Couplers Released 6 | . . . 2 . . . 3 . . . . . 1 . . Machine Destruction 3 | . . . 2 . . . . . . . . . 1 . . Programmers 3 | . . . . . . . 3 . . . . . . . . Fabnet Peak Effective % . | . . . . . . . . . . . . . . . . Robots Rewired . | . . . . . . . . . . . . . . . . Allies Hacked . | . . . . . . . . . . . . . . . . Hacks Repelled . | . . . . . . . . . . . . . . . . Allies | -11 -10 -10 -8 -7 -7 -7 -6 -5 -5 -4 -4 -3 -2 -2 -1 -------- Run | Yrd Mat Sub Mat Fac Low Low Fac Fac Ext Fac DSF Res Res Qua Acc Total Allies 3 | . . . . . . . . . 3 . . . . . . Largest Group 2 | . . . . . . . . . 2 . . . . . . Highest-Rated Group 56 | . . . . . . . . . 56 . . . . . . Highest-Rated Ally 31 | . . . . . . . . . 31 . . . . . . Total Orders . | . . . . . . . . . . . . . . . . Ally Attacks 17 | . . . . . . . . . 17 . . . . . . Total Damage 317 | . . . . . . . . . 317 . . . . . . Kills . | . . . . . . . . . . . . . . . . Allies Corrupted . | . . . . . . . . . . . . . . . . Allies Melted . | . . . . . . . . . . . . . . . . Intel | -11 -10 -10 -8 -7 -7 -7 -6 -5 -5 -4 -4 -3 -2 -2 -1 ------- Run | Yrd Mat Sub Mat Fac Low Low Fac Fac Ext Fac DSF Res Res Qua Acc Robot Analysis Total . | . . . . . . . . . . . . . . . . Derelict Logs Recovered 4 | . . 2 . . 2 . . . . . . . . . . Drone Launches . | . . . . . . . . . . . . . . . . Drone Recoveries . | . . . . . . . . . . . . . . . . Exploration | -11 -10 -10 -8 -7 -7 -7 -6 -5 -5 -4 -4 -3 -2 -2 -1 ------------- Run | Yrd Mat Sub Mat Fac Low Low Fac Fac Ext Fac DSF Res Res Qua Acc Turns Passed 9237 | 46 1108 1275 963 412 767 271 564 120 1741 45 177 605 753 78 312 Spaces Moved 8886 | 44 536 919 996 618 1300 398 688 194 869 27 124 690 1082 143 258 Core 125 | 5 . 46 . . . . . . . . 63 11 . . . Treads 722 | . . . 39 . . . . . 596 20 29 38 . . . Legs 388 | . . . . . . . . . 173 7 32 . . . 176 Wheels 1448 | 39 536 873 . . . . . . . . . . . . . Hover 470 | . . . . . . . . . . . . . 470 . . Flight 5733 | . . . 957 618 1300 398 688 194 100 . . 641 612 143 82 Fastest Speed 20 | 50 90 90 37 34 34 34 28 28 28 120 50 28 20 34 37 Average Speed 67 | 84 90 112 45 35 34 34 61 54 148 145 88 46 53 41 106 Slowest Speed 400 | 90 90 350 225 97 34 34 197 108 260 155 155 400 220 49 190 Overloaded Moves . | . . . . . . . . . . . . . . . . Propulsion Burnouts . | . . . . . . . . . . . . . . . . Robots Hopped 50 | . . . 6 . . . 3 . . . . 2 32 7 . Cave-ins Triggered 1 | . . . . . . . . . . . . 1 . . . Exploration Rate (%) 38 | 3 83 59 70 17 97 38 19 9 65 1 90 14 27 21 8 Regions Visited 15 Branch Regions 5 Pre-discovered Areas 1 | . . 1 . . . . . . . . . . . . . Known Exits Taken 1 | . . . . . . . . . . 1 . . . . . Unknown Exits Taken 13 | 1 1 1 1 1 1 1 1 1 1 . . 1 1 1 . Scrap Searched 11 | . . 6 . . 2 3 . . . . . . . . . Spaces Dug 46 | . . 7 3 19 1 . 2 2 . . . 10 2 . . Terrain Destroyed 194 | . 27 55 9 31 1 . 2 2 47 . 1 17 2 . . Melee 39 | . . . 3 19 1 . 2 2 . . . 10 2 . . Projectile 19 | . . . 6 . . . . . 13 . . . . . . AOE 134 | . 27 55 . 12 . . . . 33 . . 7 . . . Terrain Rammed . | . . . . . . . . . . . . . . . . Walls Destroyed . | . . . . . . . . . . . . . . . . Machines Disabled . | . . . . . . . . . . . . . . . . Actions | -11 -10 -10 -8 -7 -7 -7 -6 -5 -5 -4 -4 -3 -2 -2 -1 --------- Run | Yrd Mat Sub Mat Fac Low Low Fac Fac Ext Fac DSF Res Res Qua Acc Total 11153 | 49 1095 1057 1381 734 1573 522 784 201 1105 31 158 862 1168 152 281 Wait 1436 | . 511 58 269 51 228 118 45 . 19 1 3 64 55 12 2 Move 8782 | 43 535 918 983 617 1299 397 681 193 868 26 123 685 1027 130 257 Hop 38 | . . . 6 . . . 3 . . . . 2 22 5 . Pick Up 44 | . 6 5 12 2 3 . 3 . 2 . 3 3 5 . . Fast Attach 122 | 6 1 5 8 3 . . 5 2 21 3 10 29 20 4 5 Attach 32 | . . 4 3 2 2 . 4 1 3 1 1 7 3 . 1 Detach 14 | . . 1 4 1 . . 2 . . . . 3 1 1 1 Swap 88 | . 5 9 14 5 4 . 7 1 37 . . 4 2 . . Drop 54 | . . 5 13 3 3 . 4 . 13 . . 8 4 . 1 Fire 287 | . 35 52 51 3 3 . 6 . 93 . 15 2 13 . 14 Melee 217 | . . . 18 47 31 7 24 4 21 . . 55 10 . . Ram 8 | . 2 . . . . . . . . . . . 6 . . Kick 3 | . . . . . . . . . 3 . . . . . . Crush 6 | . . . . . . . . . 3 . 3 . . . . Escape Stasis 18 | . . . . . . . . . 18 . . . . . . Rewire 4 | . . . . . . . . . 4 . . . . . . Trap . | . . . . . . . . . . . . . . . . Miscellaneous . | . . . . . . . . . . . . . . . . Route ------- -11/Scrapyard -10/Materials (discovered 4 exits: [*Mat] / [*Min x2] / *Sub) -10/Subcaves -8/Materials -7/Factory -7/Lower Caves -7/Lower Caves -6/Factory (discovered 2 exits: *Fac x2) -5/Factory -5/Extension -4/Factory (discovered 2 exits: *Res / DSF) -4/DSF -3/Research -2/Research -2/Quarantine -1/Access To Epsilon Eridani History --------- Turn | Location | Event 22 | -11/Scrapyard | Discovered new exit (range 16) 47 | -11/Scrapyard | Entered Materials 153 | -10/Materials | Discovered new exit (range 16) 166 | -10/Materials | Destroyed 8 combat bots 265 | -10/Materials | Discovered new exit (range 12) 283 | -10/Materials | Discovered new exit (range 14) 322 | -10/Materials | Build established: Mutant 1139 | -10/Materials | Discovered new exit (range 7) 1155 | -10/Materials | Entered Subcaves 1341 | -10/Subcaves | Learned location of Zion (-7) 1407 | -10/Subcaves | Learned Materials terminal intel 1562 | -10/Subcaves | Lost 3 parts (1p1n1w) 1866 | -10/Subcaves | Core integrity fell below 50% 2156 | -10/Subcaves | Discovered new exit (range 8) 2193 | -10/Subcaves | Visited 4L-MR0's lab 2216 | -10/Subcaves | Found Flightbrick 2430 | -10/Subcaves | Entered Materials 2430 | -8/Materials | Evolved 4 slots: Propulsion x3, Utility x1 2431 | -8/Materials | Loaded intel: 12 terminal locations 2433 | -8/Materials | Attached Flightbrick, gained temporary slots: Utility x3 3387 | -8/Materials | Discovered new exit (range 15) 3393 | -8/Materials | Entered Factory 3393 | -7/Factory | Evolved 2 slots: Power x1, Propulsion x1 3677 | -7/Factory | Fabricated Xenon Bombardment Thruster? 3798 | -7/Factory | Discovered new exit (range 15) 3805 | -7/Factory | Entered Lower Caves 3806 | -7/Lower Caves | Encountered a Warlord checkpoint 3846 | -7/Lower Caves | Learned Factory stockpile data 3919 | -7/Lower Caves | Attracted the attention of an 0b10 checkpoint 4131 | -7/Lower Caves | Attracted the attention of an 0b10 outpost 4161 | -7/Lower Caves | Learned Factory emergency access door positions 4518 | -7/Lower Caves | Discovered new exit (range 3) 4572 | -7/Lower Caves | Entered another Lower Caves area 4624 | -7/Lower Caves | Discovered new exit (range 12) 4843 | -7/Lower Caves | Entered Factory 4843 | -6/Factory | Evolved 2 slots: Propulsion x2 4889 | -6/Factory | Discovered new exit (range 3) 5392 | -6/Factory | Discovered new exit (range 12) 5407 | -6/Factory | Entered another Factory area 5407 | -5/Factory | Evolved 2 slots: Utility x2 5508 | -5/Factory | Spotted B-75 Beast 5522 | -5/Factory | Discovered new exit (range 5) 5527 | -5/Factory | Entered Extension 5622 | -5/Extension | Rescued a captive Derelict 5624 | -5/Extension | Rescued a captive Derelict 5644 | -5/Extension | Lost 3 parts (3n) 5971 | -5/Extension | Energy Cycler disabled 5971 | -5/Extension | Rescued a captive Derelict 5971 | -5/Extension | Rescued a captive Derelict 5972 | -5/Extension | Rescued a captive Derelict 5974 | -5/Extension | Rescued a captive Derelict 5975 | -5/Extension | Rescued a captive Derelict 5979 | -5/Extension | Rescued a captive Derelict 5979 | -5/Extension | Rescued a captive Derelict 6289 | -5/Extension | Spotted B-75 Beast 6388 | -5/Extension | Destroyed B-75 Beast 6418 | -5/Extension | Lost 6 parts (5n1u) 6480 | -5/Extension | Discovered new exit (range 19) 6480 | -5/Extension | Spotted B-75 Beast 6613 | -5/Extension | Destroyed B-75 Beast 6623 | -5/Extension | Lost 5 parts (2p2n1w) 6690 | -5/Extension | Build established: Scavenger-Mutant 6977 | -5/Extension | Disrupted transfer network 7013 | -5/Extension | Destroyed 8 combat bots 7026 | -5/Extension | Lost 3 parts (2n1w) 7250 | -5/Extension | Lost 4 parts (1p2n1w) 7268 | -5/Extension | Entered Factory 7268 | -4/Factory | Evolved 2 slots: Propulsion x2 7311 | -4/Factory | Discovered new exit (range 6) 7313 | -4/Factory | Identified exit to DSF 7313 | -4/Factory | Entered DSF 7332 | -4/DSF | Additional patrols routed to DSF 7399 | -4/DSF | Lost 12 parts (1p7n1u3w) 7448 | -4/DSF | Discovered new exit (range 22) 7449 | -4/DSF | Released all parts (3) 7454 | -4/DSF | Core integrity fell below 50% 7490 | -4/DSF | Entered Research 7490 | -3/Research | Evolved 2 slots: Utility x2 7518 | -3/Research | Lost 11 parts (5n6u) 7569 | -3/Research | Lost 3 parts (3u) 7808 | -3/Research | Garrison activated, responded to threat 7870 | -3/Research | Lost 10 parts (2p4n4u) 7871 | -3/Research | Destroyed 7 combat bots 7874 | -3/Research | System corruption reached 10% 7891 | -3/Research | Core integrity fell below 50% 7931 | -3/Research | Lost 3 parts (1p1n1u) 7946 | -3/Research | Crushed by falling debris 8018 | -3/Research | System corruption reached 30% 8069 | -3/Research | Lost 3 parts (1n1u1w) 8091 | -3/Research | Discovered new exit (range 10) 8095 | -3/Research | Entered another Research area 8095 | -2/Research | Evolved 2 slots: Propulsion x2 8326 | -2/Research | System corruption reached 10% 8490 | -2/Research | Spotted B-90 Cyclops 8496 | -2/Research | Build established: Mutant 8543 | -2/Research | Lost 8 parts (1p6n1u) 8621 | -2/Research | Spotted B-90 Cyclops 8633 | -2/Research | Lost 5 parts (1p2n2u) 8771 | -2/Research | Core integrity fell below 50% 8811 | -2/Research | Spotted B-90 Cyclops 8840 | -2/Research | Spotted B-90 Cyclops 8841 | -2/Research | Discovered new exit (range 13) 8845 | -2/Research | Search patrols dispatched 8848 | -2/Research | Entered Quarantine 8862 | -2/Quarantine | Lost 3 parts (1p2w) 8923 | -2/Quarantine | Discovered new exit (range 11) 8926 | -2/Quarantine | Entered Access 8926 | -1/Access | Evolved 2 slots: Utility x2 9185 | -1/Access | Lost 3 parts (1p2n) 9226 | -1/Access | Discovered new exit (range 7) 9238 | *** | Escaped! Last Messages --------------- 09094_ G-73 Enforcer destroyed. 09097_ Acquired 91 matter. 09145_ Quantum Reactor destroyed. 09151_ Q-thruster destroyed. 09151_ Penetrated by Slug. 09151_ Slug penetrates Wall. 09154_ Impulse Thruster Array destroyed. 09154_ Penetrated by Slug. 09160_ Adv. Heat Sink melted. 09160_ Y-72 Warden destroyed. 09162_ Acquired 97 matter. 09165_ Acquired Particle Reactor. 09168_ Acquired Railgun. 09221_ Connecting with Terminal... 09221_ Current location identified: Access >>Open(Door) Sealed Barrier opened. 09226_ The Access Shell folds into the floor. 09226_ EXIT=FOUND [Achievement: Epsilon Run] Map ----- +----------------------------------------------------+ | ???# #???# """" #??????? | | ???# ############ ##???#""""" #??????? | | ???# ??# #??# #????# """"" #??????? | | ???# ?# #??# #????# ?""" #??????? | | ???# ?# #??# #????????? !#??????? | | ???# ?# #??# #????????? #??????? | | ???# ?# #??# #????????? * #??????? | | ???# ?# #??# #??????????########??????? | | ???# ?# #??# #????????????????????????? | | ???# ??? #### #????????????????????????? | | #### #####+### #????????????????????????? | | #????????????????????????? | | #????????????????????????? | | ?########## ####### #????????????????????????? | | ??????????# #?????######????????????????????????? | | ??????????# #???????????????????????????????????? | | ??????????# #???????????????????????????????????? | | ??????????# #???????????????????????????????????? | | ??????????# #?????###???????????????????????????? | | ??????????# ####### ##########??????????????????? | | ??????????# """T""" "??????????????????? | | ??????????# """ """ "??????????????????? | | ??????????# "??????????????????? | | ??????????# "??????????????????? | | ??????????# "" "??????????????????? | | ??????????# @" "??????????????????? | | ??????????# "??????????????????? | | ??????????# "??????????????????? | | ??????????# "??????????????????? | | ??????????# "??????????????????? | | ??????????# k####### ##########??????????????????? | | ??????????# ??????###???????????????????????????? | | ??????????# ????????????????????????????????????? | | ??????????# ????????????????????????????????????? | | ??????????# ????????????????????????????????????? | | ??????????# ????????????????????????????????????? | | ??????????# ????????????????????????????????????? | | ??????????# ????????????????????????????????????? | | ?????????????????????????????????????????????????? | | ?????????????????????????????????????????????????? | | ?????????????????????????????????????????????????? | | ?????????????????????????????????????????????????? | | ?????????????????????????????????????????????????? | | ?????????????????????????????????????????????????? | | ?????????????????????????????????????????????????? | | ?????????????????????????????????????????????????? | | ?????????????????????????????????????????????????? | | ?????????????????????????????????????????????????? | | ?????????????????????????????????????????????????? | | ?????????????????????????????????????????????????? | +----------------------------------------------------+ Best States ------------- Heat Dissipation 67 Coolant Potential 65 Energy Generation 55 Energy Capacity 600 Matter Stores 300 Matter Capacity 300 Sight Range 22 Robot Scan Range 19 Terrain Scan Density 85 Jamming Range 16 Base Temperature (-) 100 Armor Coverage 250 Resistance: KI 20 Resistance: TH 30 Utility Shielding 66 Melee Speed Boost 20 Phase Shifting 5 Evasion (%) 74 Targeting Accuracy 8 Melee Accuracy 48 Target Analysis 8 Recoil Reduction 6 Item Schematics ----------------- Grenade Launcher | -8/Materials | Scanalyzed Xenon Bombardment Thruster | -8/Materials | Scanalyzed Robot Schematics ------------------ None Fabricated ------------ Xenon Bombardment Thruster | x2 | -7/Factory Alien Tech Used ----------------- None Achievements -------------- Cya! Denied? Epsilon Run Streaker Challenges ------------ None Game ------ Seed LauncherAnalysisCarapace Manual? 0 Play Time 01:45:48 Cumulative 103.6 hours Start 2024.09.26 @ 21:15:20 End 2024.09.27 @ 23:14:38 Sessions 1 Manual Loads 0 Difficulty Rogue Special Mode None Game No. 178 Rogue 178 Adventurer 0 Explorer 0 Win Type 0 Total 1 Types 1/0/0/0/0/0/0/0/0 Lore% 49 Gallery% 53 Achievement% 43 Wizard Run 0 Options --------- Layout 0 ASCII 0 Keyboard 1 Movement Numpad Keybinds 0 Fullscreen 2 Font 18/SmallcapsGlow Map View 76x50 Zoom Use 0% Tactical HUD 1 Map Filters NONE Filters NONE Steam 1 RUN: b3fa21b8-a647-4a3d-8e45-1c33fc98496c